[Event "AUT 2nd BL Mitte 2021-22"]
[Site "Austria"]
[Date "2022.03.27"]
[Round "9.31"]
[White "Csonka, Balazs"]
[Black "Schmidt, Peter"]
[Result "1-0"]
[ECO "B09"]
[WhiteElo "2474"]
[BlackElo "2402"]
[Annotator "ChessBase"]
[PlyCount "47"]
[EventDate "2021.10.21"]
[EventType "team-tourn"]
[EventCountry "AUT"]
[SourceTitle "playchess.com"]
[Source "ChessBase"]
[SourceQuality "1"]
[TimeControl "40/5400+30:1800+30"]

1. e4 {[%emt 0:00:04]} d6 {[%emt 0:00:12]} 2. d4 {[%emt 0:00:08]} Nf6 {[%emt 0:00:06]} 3. Nc3 {[%emt 0:00:06]} g6 {[%emt 0:00:06]} 4. f4 {[%emt 0:00:21]} Bg7 {[%emt 0:00:12]} 5. Nf3 {[%emt 0:00:09]} O-O {[%emt 0:00:10]} 6. e5 {[%emt 0:00:13]} dxe5 {[%emt 0:00:34]} 7. fxe5 {[%emt 0:01:06]} Nd5 {[%emt 0:00:24]} 8. Bc4 {[%emt 0:00:10]} Nxc3 {[%emt 0:00:10]} 9. bxc3 {[%emt 0:00:06]} c5 {[%emt 0:00:08]} 10. O-O {[%emt 0:00:14]} Bg4 {[%emt 0:02:07]} 11. Qd3 {[%emt 0:01:18]} Nc6 {[%emt 0:12:24]} 12. Ng5 {[%emt 0:00:15]} e6 {[%emt 0:00:13]} 13. Qg3 {[%emt 0:00:09]} Bf5 {[%emt 0:02:05]} 14. Rxf5 {[%emt 0:00:14]} exf5 {[%emt 0:03:28]} 15. e6 {[%emt 0:00:11]} cxd4 {[%emt 0:39:02]} 16. exf7+ {[%emt 0:16:11]} Kh8 {[%emt 0:00:23]} 17. Nxh7 {[%emt 0:00:26]} dxc3 {[%emt 0:04:44]} 18. Be3 {[%emt 0:16:55]} Bd4 {[%emt 0:09:24]} 19. Nxf8 {[%emt 0:00:50]} Bxe3+ {[%emt 0:00:08]} 20. Qxe3 {[%emt 0:00:08]} Qxf8 {[%emt 0:00:05]} 21. Re1 {[%emt 0:07:56]} Rd8 {[%emt 0:06:00]} 22. Qxc3+ {[%emt 0:08:10]} Kh7 {[%emt 0:00:51]} 23. Re3 {[%emt 0:00:50]} Qc5 {[%emt 0:00:51]} 24. f8=N+ {[%emt 0:01:06]} 1-0

[Event "AUT 2nd BL Mitte 2021-22"]
[Site "Austria"]
[Date "2022.03.27"]
[Round "9.32"]
[White "Testor, Sebastian"]
[Black "Gajek, Radoslaw"]
[Result "1/2-1/2"]
[ECO "A41"]
[WhiteElo "2323"]
[BlackElo "2454"]
[Annotator "ChessBase"]
[PlyCount "140"]
[EventDate "2021.10.21"]
[EventType "team-tourn"]
[EventCountry "AUT"]
[SourceTitle "playchess.com"]
[Source "ChessBase"]
[SourceQuality "1"]
[TimeControl "40/5400+30:1800+30"]

1. d4 {[%emt 0:00:05]} d6 {[%emt 0:00:08]} 2. Nf3 {[%emt 0:05:07]} Bg4 {[%emt 0:00:29]} 3. e3 {[%emt 0:01:45]} Nd7 {[%emt 0:00:29]} 4. Be2 {[%emt 0:02:02]} Ngf6 {[%emt 0:00:36]} 5. b3 {[%emt 0:06:23]} e5 {[%emt 0:01:31]} 6. dxe5 {[%emt 0:06:30]} dxe5 {[%emt 0:00:32]} 7. Bb2 {[%emt 0:00:10]} Bb4+ {[%emt 0:02:08]} 8. Nfd2 {[%emt 0:07:06]} Bxe2 {[%emt 0:07:47]} 9. Qxe2 {[%emt 0:00:10]} c6 {[%emt 0:00:03]} 10. a3 {[%emt 0:06:29]} Be7 {[%emt 0:00:22]} 11. Nc3 {[%emt 0:01:28]} Qc7 {[%emt 0:00:59]} 12. h4 {[%emt 0:07:47]} O-O-O {[%emt 0:03:17]} 13. h5 {[%emt 0:02:27]} Nc5 {[%emt 0:02:54]} 14. O-O-O {[%emt 0:02:51]} Ne6 {[%emt 0:03:48]} 15. Kb1 {[%emt 0:03:02]} Rhe8 {[%emt 0:06:12]} 16. Qf3 {[%emt 0:03:27]} Ng5 {[%emt 0:06:40]} 17. Qf5+ {[%emt 0:04:12]} Nd7 {[%emt 0:00:57]} 18. Nf3 {[%emt 0:04:48]} g6 {[%emt 0:01:21]} 19. hxg6 {[%emt 0:01:33]} hxg6 {[%emt 0:00:09]} 20. Qg4 {[%emt 0:00:22]} f5 {[%emt 0:02:35]} 21. Qg3 {[%emt 0:00:19]} Nxf3 {[%emt 0:01:35]} 22. gxf3 {[%emt 0:00:58]} Nf8 {[%emt 0:00:05]} 23. e4 {[%emt 0:08:21]} f4 {[%emt 0:02:14]} 24. Qg4+ {[%emt 0:01:19]} Kb8 {[%emt 0:00:04]} 25. Ne2 {[%emt 0:04:36]} Bc5 {[%emt 0:04:12]} 26. Qg5 {[%emt 0:01:10]} Rxd1+ {[%emt 0:00:30]} 27. Rxd1 {[%emt 0:00:04]} Bxf2 {[%emt 0:09:42]} 28. Bxe5 {[%emt 0:01:29]} Qxe5 {[%emt 0:00:07]} 29. Qxe5+ {[%emt 0:00:36]} Rxe5 {[%emt 0:00:07]} 30. Rd8+ {[%emt 0:00:04]} Kc7 {[%emt 0:00:04]} 31. Rxf8 {[%emt 0:00:03]} g5 {[%emt 0:00:32]} 32. Rg8 {[%emt 0:04:55]} Be3 {[%emt 0:05:27]} 33. c3 {[%emt 0:03:12]} Kd6 {[%emt 0:02:09]} 34. Kc2 {[%emt 0:01:32]} Ke7 {[%emt 0:00:44]} 35. Kd3 {[%emt 0:04:56]} Kf7 {[%emt 0:00:37]} 36. Rh8 {[%emt 0:01:27]} Ra5 {[%emt 0:04:22]} 37. a4 {[%emt 0:01:06]} b5 {[%emt 0:00:06]} 38. axb5 {[%emt 0:01:53]} cxb5 {[%emt 0:00:58]} 39. Nd4 {[%emt 0:01:56]} Ra1 {[%emt 0:01:44]} 40. e5 {[%emt 0:00:00]} Bxd4 {[%emt 0:00:00]} 41. Kxd4 {[%emt 0:07:04]} Re1 {[%emt 0:14:41]} 42. c4 {[%emt 0:02:42]} bxc4 {[%emt 0:05:09]} 43. bxc4 {[%emt 0:00:21]} a5 {[%emt 0:00:11]} 44. c5 {[%emt 0:05:01]} Rd1+ {[%emt 0:04:12]} 45. Ke4 {[%emt 0:02:32]} Rc1 {[%emt 0:00:27]} 46. Kd5 {[%emt 0:00:35]} Rd1+ {[%emt 0:00:10]} 47. Ke4 {[%emt 0:03:26]} Rc1 {[%emt 0:00:18]} 48. Rc8 {[%emt 0:01:11]} Ke6 {[%emt 0:01:07]} 49. c6 {[%emt 0:03:24]} Re1+ {[%emt 0:05:09]} 50. Kd4 {[%emt 0:00:19]} Rd1+ {[%emt 0:04:16]} 51. Kc5 {[%emt 0:01:22]} Rc1+ {[%emt 0:05:40]} 52. Kb6 {[%emt 0:00:09]} Rb1+ {[%emt 0:01:23]} 53. Ka6 {[%emt 0:01:33]} Rc1 {[%emt 0:00:44]} 54. Kb6 {[%emt 0:00:41]} Rb1+ {[%emt 0:00:42]} 55. Kxa5 {[%emt 0:01:29]} Ra1+ {[%emt 0:07:10]} 56. Kb6 {[%emt 0:00:27]} Rb1+ {[%emt 0:00:03]} 57. Kc5 {[%emt 0:00:23]} Rc1+ {[%emt 0:00:05]} 58. Kd4 {[%emt 0:00:28]} Rd1+ {[%emt 0:00:36]} 59. Ke4 {[%emt 0:00:11]} Re1+ {[%emt 0:00:18]} 60. Kd4 {[%emt 0:00:48]} Rd1+ {[%emt 0:00:09]} 61. Ke4 {[%emt 0:01:12]} Re1+ {[%emt 0:00:11]} 62. Kd3 {[%emt 0:00:04]} Kd5 {[%emt 0:00:18]} 63. c7 {[%emt 0:03:13]} Re3+ {[%emt 0:00:06]} 64. Kd2 {[%emt 0:00:10]} Kc6 {[%emt 0:00:04]} 65. Rg8 {[%emt 0:00:43]} Kxc7 {[%emt 0:00:05]} 66. Rxg5 {[%emt 0:00:06]} Rxf3 {[%emt 0:00:05]} 67. Ke2 {[%emt 0:00:31]} Re3+ {[%emt 0:00:04]} 68. Kf2 {[%emt 0:00:07]} Kd7 {[%emt 0:00:03]} 69. Rf5 {[%emt 0:00:10]} Ke6 {[%emt 0:00:03]} 70. Rxf4 {[%emt 0:00:04]} Rxe5 {[%emt 0:00:03]} 1/2-1/2

[Event "AUT 2nd BL Mitte 2021-22"]
[Site "Austria"]
[Date "2022.03.27"]
[Round "9.33"]
[White "Kristoferitsch, Daniel"]
[Black "Renner, Christoph"]
[Result "1-0"]
[ECO "C49"]
[WhiteElo "2253"]
[BlackElo "2301"]
[Annotator "ChessBase"]
[PlyCount "171"]
[EventDate "2021.10.21"]
[EventType "team-tourn"]
[EventCountry "AUT"]
[SourceTitle "playchess.com"]
[Source "ChessBase"]
[SourceQuality "1"]
[TimeControl "40/5400+30:1800+30"]

1. e4 {[%emt 0:00:04]} e5 {[%emt 0:00:11]} 2. Nf3 {[%emt 0:00:12]} Nc6 {[%emt 0:00:03]} 3. Nc3 {[%emt 0:00:11]} Nf6 {[%emt 0:00:40]} 4. Bb5 {[%emt 0:00:05]} Bb4 {[%emt 0:00:42]} 5. O-O {[%emt 0:00:12]} O-O {[%emt 0:00:10]} 6. Bxc6 {[%emt 0:00:06]} dxc6 {[%emt 0:08:15]} 7. d3 {[%emt 0:00:09]} Nd7 {[%emt 0:11:22]} 8. Ne2 {[%emt 0:00:18]} Bd6 {[%emt 0:01:31]} 9. Ng3 {[%emt 0:01:18]} Nc5 {[%emt 0:08:36]} 10. c3 {[%emt 0:03:09]} Re8 {[%emt 0:07:55]} 11. Re1 {[%emt 0:04:14]} Bg4 {[%emt 0:11:37]} 12. h3 {[%emt 0:01:44]} Bxf3 {[%emt 0:00:04]} 13. Qxf3 {[%emt 0:00:13]} Bf8 {[%emt 0:00:47]} 14. Rd1 {[%emt 0:06:52]} g6 {[%emt 0:04:29]} 15. d4 {[%emt 0:06:17]} exd4 {[%emt 0:07:35]} 16. cxd4 {[%emt 0:00:12]} Ne6 {[%emt 0:04:22]} 17. Be3 {[%emt 0:08:08]} Bg7 {[%emt 0:05:56]} 18. d5 {[%emt 0:01:35]} cxd5 {[%emt 0:00:18]} 19. exd5 {[%emt 0:00:14]} Ng5 {[%emt 0:03:32]} 20. Qg4 {[%emt 0:14:54]} Re5 {[%emt 0:05:59]} 21. Qc4 {[%emt 0:05:43]} h6 {[%emt 0:06:10]} 22. Bf4 {[%emt 0:08:57]} Re7 {[%emt 0:00:52]} 23. h4 {[%emt 0:00:09]} Nh7 {[%emt 0:00:39]} 24. h5 {[%emt 0:00:08]} g5 {[%emt 0:02:27]} 25. Be3 {[%emt 0:08:59]} Qd7 {[%emt 0:00:31]} 26. Rd3 {[%emt 0:01:31]} Nf6 {[%emt 0:02:59]} 27. Rad1 {[%emt 0:02:09]} Ne8 {[%emt 0:00:51]} 28. Bc5 {[%emt 0:09:40]} Nd6 {[%emt 0:00:07]} 29. Bxd6 {[%emt 0:00:08]} cxd6 {[%emt 0:00:05]} 30. Rf3 {[%emt 0:03:43]} Re5 {[%emt 0:02:00]} 31. Qd3 {[%emt 0:01:34]} Rae8 {[%emt 0:01:15]} 32. Nf5 {[%emt 0:02:05]} Qa4 {[%emt 0:00:31]} 33. b3 {[%emt 0:04:31]} Qb4 {[%emt 0:01:24]} 34. g3 {[%emt 0:00:56]} Bf8 {[%emt 0:00:50]} 35. Kg2 {[%emt 0:00:52]} Qg4 {[%emt 0:00:41]} 36. Ne3 {[%emt 0:01:04]} Qxh5 {[%emt 0:00:28]} 37. Rh1 {[%emt 0:00:08]} Qg6 {[%emt 0:00:11]} 38. Qxg6+ {[%emt 0:00:07]} fxg6 {[%emt 0:00:04]} 39. Ng4 {[%emt 0:00:07]} Bg7 {[%emt 0:02:47]} 40. Nxe5 {[%emt 0:00:00]} Rxe5 {[%emt 0:00:00]} 41. Rd3 {[%emt 0:00:58]} Re2 {[%emt 0:00:38]} 42. a4 {[%emt 0:03:04]} Rc2 {[%emt 0:05:32]} 43. Rhd1 {[%emt 0:15:01]} Bc3 {[%emt 0:02:27]} 44. Re3 {[%emt 0:04:38]} Kf7 {[%emt 0:06:37]} 45. Rdd3 {[%emt 0:01:24]} Be5 {[%emt 0:01:55]} 46. Re4 {[%emt 0:00:18]} Rc7 {[%emt 0:07:53]} 47. f4 {[%emt 0:02:23]} gxf4 {[%emt 0:00:48]} 48. gxf4 {[%emt 0:00:02]} Bf6 {[%emt 0:00:39]} 49. Re6 {[%emt 0:00:17]} Rd7 {[%emt 0:03:28]} 50. Kf3 {[%emt 0:01:50]} h5 {[%emt 0:01:17]} 51. Rde3 {[%emt 0:01:11]} Rd8 {[%emt 0:01:00]} 52. Re2 {[%emt 0:00:28]} Rd7 {[%emt 0:01:07]} 53. Rc2 {[%emt 0:00:07]} Bd8 {[%emt 0:02:08]} 54. Rc8 {[%emt 0:00:38]} Kg7 {[%emt 0:00:56]} 55. Ke4 {[%emt 0:02:57]} Bf6 {[%emt 0:00:31]} 56. Ra8 {[%emt 0:00:23]} a6 {[%emt 0:00:06]} 57. Rc8 {[%emt 0:00:06]} Kf7 {[%emt 0:00:25]} 58. Kf3 {[%emt 0:01:04]} Kg7 {[%emt 0:00:05]} 59. Rc4 {[%emt 0:01:43]} Kf7 {[%emt 0:00:05]} 60. Rc2 {[%emt 0:01:24]} Kg7 {[%emt 0:00:03]} 61. Ke4 {[%emt 0:00:10]} Kf7 {[%emt 0:00:11]} 62. Rh2 {[%emt 0:00:20]} h4 {[%emt 0:00:29]} 63. Rc2 {[%emt 0:00:23]} Kg7 {[%emt 0:00:04]} 64. Kf3 {[%emt 0:00:09]} Kf7 {[%emt 0:00:04]} 65. Kg4 {[%emt 0:00:10]} Kg7 {[%emt 0:00:19]} 66. Rf2 {[%emt 0:01:15]} Kf7 {[%emt 0:01:41]} 67. f5 {[%emt 0:01:09]} g5 {[%emt 0:00:07]} 68. Rc2 {[%emt 0:00:49]} Kg7 {[%emt 0:03:38]} 69. Rc8 {[%emt 0:01:55]} Kf7 {[%emt 0:00:10]} 70. b4 {[%emt 0:00:26]} Kg7 {[%emt 0:00:29]} 71. b5 {[%emt 0:00:18]} axb5 {[%emt 0:00:02]} 72. axb5 {[%emt 0:00:01]} Kf7 {[%emt 0:02:03]} 73. b6 {[%emt 0:00:46]} Bd8 {[%emt 0:00:20]} 74. Re2 {[%emt 0:03:40]} Bxb6 {[%emt 0:00:39]} 75. Kxg5 {[%emt 0:00:25]} Bd8+ {[%emt 0:00:09]} 76. Kg4 {[%emt 0:00:40]} Kf6 {[%emt 0:00:44]} 77. Re8 {[%emt 0:02:20]} Be7 {[%emt 0:00:17]} 78. Rh8 {[%emt 0:00:23]} Kg7 {[%emt 0:00:57]} 79. Rcg8+ {[%emt 0:00:26]} Kf7 {[%emt 0:00:01]} 80. Rg6 {[%emt 0:00:15]} Rc7 {[%emt 0:00:22]} 81. Rh7+ {[%emt 0:00:14]} Kf8 {[%emt 0:00:20]} 82. Rh8+ {[%emt 0:00:15]} Kf7 {[%emt 0:00:01]} 83. Rh7+ {[%emt 0:00:01]} Kf8 {[%emt 0:00:01]} 84. f6 {[%emt 0:00:29]} Bd8 {[%emt 0:00:55]} 85. Rh8+ {[%emt 0:00:10]} Kf7 {[%emt 0:00:03]} 86. Kf5 {[%emt 0:00:07]} 1-0

[Event "AUT 2nd BL Mitte 2021-22"]
[Site "Austria"]
[Date "2022.03.27"]
[Round "9.34"]
[White "Hellmayr, Alois"]
[Black "Kravanja, Georg"]
[Result "1/2-1/2"]
[ECO "A05"]
[WhiteElo "2197"]
[BlackElo "2200"]
[Annotator "ChessBase"]
[PlyCount "53"]
[EventDate "2021.10.21"]
[EventType "team-tourn"]
[EventCountry "AUT"]
[SourceTitle "playchess.com"]
[Source "ChessBase"]
[SourceQuality "1"]
[TimeControl "40/5400+30:1800+30"]

1. Nf3 {[%emt 0:00:04]} Nf6 {[%emt 0:00:07]} 2. g3 {[%emt 0:00:17]} g6 {[%emt 0:00:05]} 3. Bg2 {[%emt 0:00:22]} Bg7 {[%emt 0:00:04]} 4. O-O {[%emt 0:00:09]} O-O {[%emt 0:00:05]} 5. d4 {[%emt 0:00:23]} d5 {[%emt 0:00:03]} 6. c3 {[%emt 0:03:22]} c6 {[%emt 0:00:04]} 7. a4 {[%emt 0:00:38]} Nbd7 {[%emt 0:00:10]} 8. Nbd2 {[%emt 0:04:06]} Qc7 {[%emt 0:00:31]} 9. Re1 {[%emt 0:00:35]} e5 {[%emt 0:07:32]} 10. dxe5 {[%emt 0:06:51]} Nxe5 {[%emt 0:00:11]} 11. Nxe5 {[%emt 0:00:36]} Qxe5 {[%emt 0:00:02]} 12. e4 {[%emt 0:01:53]} Qc7 {[%emt 0:00:51]} 13. exd5 {[%emt 0:01:42]} Nxd5 {[%emt 0:02:06]} 14. Nc4 {[%emt 0:05:17]} Be6 {[%emt 0:04:15]} 15. Ne3 {[%emt 0:01:25]} Rad8 {[%emt 0:12:51]} 16. Nxd5 {[%emt 0:02:33]} Bxd5 {[%emt 0:00:02]} 17. Bxd5 {[%emt 0:02:34]} Rxd5 {[%emt 0:00:04]} 18. Qc2 {[%emt 0:00:46]} Qd7 {[%emt 0:01:21]} 19. Be3 {[%emt 0:02:11]} b6 {[%emt 0:07:11]} 20. Rad1 {[%emt 0:04:50]} Rd8 {[%emt 0:03:02]} 21. Rxd5 {[%emt 0:00:06]} Qxd5 {[%emt 0:00:12]} 22. Re2 {[%emt 0:00:36]} Qd1+ {[%emt 0:03:10]} 23. Kg2 {[%emt 0:01:32]} Qd5+ {[%emt 0:01:27]} 24. Kg1 {[%emt 0:01:05]} Qd1+ {[%emt 0:00:10]} 25. Kg2 {[%emt 0:00:45]} Qd5+ {[%emt 0:00:11]} 26. Kg1 {[%emt 0:00:17]} Qd1+ 27. Kg2 {[%emt 0:00:30]} 1/2-1/2

[Event "AUT 2nd BL Mitte 2021-22"]
[Site "Austria"]
[Date "2022.03.27"]
[Round "9.35"]
[White "Eder, Matthias"]
[Black "Hiermann, Dietmar"]
[Result "1-0"]
[ECO "C78"]
[WhiteElo "2233"]
[BlackElo "2198"]
[Annotator "ChessBase"]
[PlyCount "181"]
[EventDate "2021.10.21"]
[EventType "team-tourn"]
[EventCountry "AUT"]
[SourceTitle "playchess.com"]
[Source "ChessBase"]
[SourceQuality "1"]
[TimeControl "40/5400+30:1800+30"]

1. e4 {[%emt 0:00:04]} e5 {[%emt 0:00:05]} 2. Nf3 {[%emt 0:00:05]} Nc6 {[%emt 0:00:06]} 3. Bb5 {[%emt 0:00:04]} a6 {[%emt 0:00:41]} 4. Ba4 {[%emt 0:00:06]} Nf6 {[%emt 0:00:18]} 5. O-O {[%emt 0:00:07]} b5 {[%emt 0:02:02]} 6. Bb3 {[%emt 0:00:06]} Be7 {[%emt 0:00:04]} 7. d3 {[%emt 0:00:25]} d6 {[%emt 0:00:21]} 8. c3 {[%emt 0:00:21]} Na5 {[%emt 0:01:52]} 9. Bc2 {[%emt 0:00:07]} c5 {[%emt 0:00:11]} 10. d4 {[%emt 0:00:10]} Qc7 {[%emt 0:08:57]} 11. d5 {[%emt 0:00:08]} O-O {[%emt 0:04:22]} 12. b3 {[%emt 0:00:49]} Nb7 {[%emt 0:02:03]} 13. a4 {[%emt 0:03:58]} Bd7 {[%emt 0:02:55]} 14. h3 {[%emt 0:05:31]} h6 {[%emt 0:06:04]} 15. Be3 {[%emt 0:00:48]} Nh7 {[%emt 0:01:27]} 16. Nbd2 {[%emt 0:02:03]} Rfb8 {[%emt 0:03:03]} 17. Qe2 {[%emt 0:12:03]} Nf8 {[%emt 0:14:33]} 18. Ra2 {[%emt 0:07:03]} Ng6 {[%emt 0:09:01]} 19. Rfa1 {[%emt 0:02:51]} bxa4 {[%emt 0:01:42]} 20. bxa4 {[%emt 0:00:07]} Na5 {[%emt 0:00:08]} 21. Qf1 {[%emt 0:17:19]} Nf4 {[%emt 0:03:20]} 22. Kh2 {[%emt 0:09:38]} Rb6 {[%emt 0:02:31]} 23. Ng1 {[%emt 0:07:06]} Rab8 {[%emt 0:01:26]} 24. g3 {[%emt 0:00:20]} Ng6 {[%emt 0:00:04]} 25. Rc1 {[%emt 0:09:48]} Bg5 {[%emt 0:07:22]} 26. f4 {[%emt 0:08:03]} exf4 {[%emt 0:00:21]} 27. gxf4 {[%emt 0:00:08]} Bf6 {[%emt 0:00:08]} 28. Ne2 {[%emt 0:00:21]} Rb2 {[%emt 0:01:51]} 29. Raa1 {[%emt 0:01:41]} Re8 {[%emt 0:03:04]} 30. Rab1 {[%emt 0:03:35]} Reb8 {[%emt 0:00:42]} 31. Ra1 {[%emt 0:00:52]} Ne7 {[%emt 0:01:37]} 32. Qg2 {[%emt 0:02:29]} Re8 {[%emt 0:01:55]} 33. Bg1 {[%emt 0:06:46]} Kf8 {[%emt 0:00:46]} 34. Rab1 {[%emt 0:00:21]} Reb8 {[%emt 0:00:14]} 35. Qf1 {[%emt 0:00:21]} Nc8 {[%emt 0:01:00]} 36. Qd1 {[%emt 0:00:29]} Rxb1 {[%emt 0:02:53]} 37. Rxb1 {[%emt 0:00:07]} Rxb1 {[%emt 0:00:03]} 38. Qxb1 {[%emt 0:00:06]} Nb6 {[%emt 0:00:18]} 39. e5 {[%emt 0:01:13]} dxe5 {[%emt 0:00:53]} 40. d6 {[%emt 0:00:41]} Qb7 {[%emt 0:19:05]} 41. Bxc5 {[%emt 0:06:31]} Nc8 {[%emt 0:04:49]} 42. Qb4 {[%emt 0:09:46]} Qxb4 {[%emt 0:04:23]} 43. cxb4 {[%emt 0:00:38]} Nb7 {[%emt 0:01:21]} 44. Ne4 {[%emt 0:04:48]} Ke8 {[%emt 0:04:15]} 45. a5 {[%emt 0:03:05]} exf4 {[%emt 0:02:50]} 46. Nxf6+ {[%emt 0:01:03]} gxf6 {[%emt 0:00:00]} 47. Bd3 {[%emt 0:00:33]} Ncxd6 {[%emt 0:00:12]} 48. Bxa6 {[%emt 0:00:49]} Nxc5 {[%emt 0:02:30]} 49. bxc5 {[%emt 0:00:05]} Ne4 {[%emt 0:00:09]} 50. Bb7 {[%emt 0:01:48]} f3 {[%emt 0:00:30]} 51. Ng3 {[%emt 0:00:39]} Nxc5 {[%emt 0:00:40]} 52. a6 {[%emt 0:00:05]} Nxa6 {[%emt 0:00:39]} 53. Bxa6 {[%emt 0:00:13]} Kf8 {[%emt 0:01:47]} 54. h4 {[%emt 0:00:19]} Kg7 {[%emt 0:02:38]} 55. Bd3 {[%emt 0:00:25]} Ba4 {[%emt 0:01:05]} 56. Nh5+ {[%emt 0:00:24]} Kf8 {[%emt 0:00:16]} 57. Kg3 {[%emt 0:00:20]} Bd1 {[%emt 0:00:22]} 58. Kf2 {[%emt 0:01:40]} Ke7 {[%emt 0:00:42]} 59. Ng7 {[%emt 0:00:28]} Kf8 {[%emt 0:00:39]} 60. Nf5 {[%emt 0:00:26]} h5 {[%emt 0:00:10]} 61. Ng3 {[%emt 0:00:13]} Kg7 {[%emt 0:01:10]} 62. Nxh5+ {[%emt 0:00:06]} Kh6 {[%emt 0:00:02]} 63. Ng3 {[%emt 0:00:20]} Kg7 {[%emt 0:00:19]} 64. Nf5+ {[%emt 0:02:08]} Kg8 {[%emt 0:00:10]} 65. Ne3 {[%emt 0:00:37]} Ba4 {[%emt 0:00:13]} 66. Kxf3 {[%emt 0:00:08]} Kg7 {[%emt 0:00:03]} 67. Kf4 {[%emt 0:00:21]} Kh6 {[%emt 0:00:54]} 68. Be2 {[%emt 0:01:31]} Bd7 {[%emt 0:00:15]} 69. Bg4 {[%emt 0:00:07]} Ba4 {[%emt 0:00:16]} 70. Ke4 {[%emt 0:02:14]} Kg6 {[%emt 0:00:28]} 71. Kf4 {[%emt 0:00:47]} Kh7 {[%emt 0:00:13]} 72. Bh5 {[%emt 0:00:53]} Bb3 {[%emt 0:00:44]} 73. Nf5 {[%emt 0:01:01]} Be6 {[%emt 0:00:26]} 74. Nd6 {[%emt 0:00:13]} Kg7 {[%emt 0:00:36]} 75. Ne8+ {[%emt 0:00:31]} Kh6 {[%emt 0:00:06]} 76. Nxf6 {[%emt 0:00:12]} Kg7 {[%emt 0:00:06]} 77. Kg5 {[%emt 0:00:03]} Bb3 {[%emt 0:00:12]} 78. Bg4 {[%emt 0:00:28]} Ba2 {[%emt 0:00:20]} 79. h5 {[%emt 0:01:29]} Bb3 {[%emt 0:00:06]} 80. Bf5 {[%emt 0:00:25]} Bc4 {[%emt 0:00:09]} 81. Ne8+ {[%emt 0:01:50]} Kf8 {[%emt 0:01:04]} 82. Kf6 {[%emt 0:00:38]} Kg8 {[%emt 0:00:15]} 83. Nd6 {[%emt 0:01:43]} Bb3 {[%emt 0:00:02]} 84. Bd3 {[%emt 0:00:17]} Ba4 {[%emt 0:02:17]} 85. Bc4 {[%emt 0:00:35]} Kh7 {[%emt 0:00:01]} 86. Kg5 {[%emt 0:00:36]} f6+ {[%emt 0:00:29]} 87. Kxf6 {[%emt 0:00:17]} Kh6 {[%emt 0:00:01]} 88. Be2 {[%emt 0:00:09]} Bd7 {[%emt 0:00:12]} 89. Nf7+ {[%emt 0:00:10]} Kh7 {[%emt 0:00:02]} 90. Bd3+ {[%emt 0:00:22]} Kg8 {[%emt 0:00:06]} 91. h6 {[%emt 0:00:09]} 1-0

[Event "AUT 2nd BL Mitte 2021-22"]
[Site "Austria"]
[Date "2022.03.27"]
[Round "9.36"]
[White "Taggatz, Mario"]
[Black "Teuschler, Barbara"]
[Result "0-1"]
[ECO "D02"]
[WhiteElo "2198"]
[BlackElo "2107"]
[Annotator "NA"]
[PlyCount "56"]
[EventDate "2021.10.21"]
[EventType "team-tourn"]
[EventCountry "AUT"]
[SourceTitle "playchess.com"]
[Source "ChessBase"]
[SourceQuality "1"]
[TimeControl "40/5400+30:1800+30"]

1. d4 {[%emt 0:00:13]} d5 {[%emt 0:00:14]} 2. Nf3 {[%emt 0:00:25]} Nf6 {[%emt 0:00:16]} 3. Bf4 {[%emt 0:00:17]} c5 {[%emt 0:00:15]} 4. e3 {[%emt 0:00:11]} Qb6 {[%emt 0:00:21]} 5. Nc3 {[%emt 0:02:09]} a6 {[%emt 0:10:24]} 6. Rb1 {[%emt 0:06:00]} cxd4 {[%emt 0:02:59]} 7. exd4 {[%emt 0:00:26]} Bg4 {[%emt 0:03:46]} 8. Be2 {[%emt 0:01:28]} e6 {[%emt 0:02:19]} 9. O-O {[%emt 0:02:11]} Nc6 {[%emt 0:03:58]} 10. Ne5 {[%emt 0:06:41]} Bxe2 {[%emt 0:01:29]} 11. Nxe2 {[%emt 0:00:10]} Be7 {[%emt 0:02:47]} 12. c3 {[%emt 0:03:08]} O-O {[%emt 0:00:29]} 13. Qb3 {[%emt 0:17:31]} Qa7 {[%emt 0:17:00]} 14. Ng3 {[%emt 0:06:47]} Rfc8 {[%emt 0:02:50]} 15. Rbe1 $11 {[%emt 0:03:02]} b5 {[%emt 0:07:53]} 16. Qd1 {[%emt 0:03:43]} b4 {[%emt 0:05:29]} 17. Re3 {[%emt 0:03:35]} bxc3 {[%emt 0:04:22]} 18. bxc3 {[%emt 0:00:50]} Nxe5 {[%emt 0:06:00]} 19. Bxe5 {[%emt 0:03:04]} Nd7 {[%emt 0:11:20]} 20. Nh5 {[%emt 0:08:50]} Nxe5 {[%emt 0:00:43]} 21. dxe5 {[%emt 0:00:41]} Rc4 {[%emt 0:00:39]} 22. Rg3 {[%emt 0:01:41]} g6 {[%emt 0:00:16]} 23. Qd2 {[%emt 0:04:53]} Qc7 {[%emt 0:07:02]} 24. Re1 {[%emt 0:02:01]} Qd8 {[%emt 0:00:53]} 25. Rb1 {[%emt 0:11:05]} Rac8 {[%emt 0:00:56]} 26. Rb7 {[%emt 0:01:48]} R8c7 {[%emt 0:00:32]} 27. Rxc7 {[%emt 0:05:39]} Qxc7 {[%emt 0:00:57]} 28. Re3 {[%emt 0:04:50]} gxh5 {[%emt 0:01:30]} 0-1